bitfinex/quotes_SOLUSD_20250506
["timestamp","ask_amount","ask_price","bid_price","bid_amount"]
[1746545272914,53.50742953,143.83,143.79,43.03734272]
[1746545273417,46.5547615,143.83,143.79,43.03734272]
[1746545275336,32.5547615,143.82,143.79,3.52812899]
[1746545275617,32.5547615,143.82,143.78,60.14449039]
[1746545275914,32.5547615,143.8,143.78,17.57099769]
[1746545276216,32.5547615,143.81,143.78,3.57099769]
[1746545276419,32.5547615,143.8,143.76,50.35787428]
[1746545276603,32.5547615,143.8,143.76,82.91263578]
[1746545277125,32.5547615,143.81,143.76,82.91263578]
[1746545277498,32.5547615,143.8,143.76,50.35787428]
[1746545277715,32.5547615,143.8,143.76,82.91263578]
[1746545278193,39.50891384,143.8,143.76,82.91263578]
[1746545279095,39.50891384,143.8,143.76,75.9568615]
[1746545279494,32.5547615,143.79,143.76,41.83]
[1746545279798,20.37134359,143.79,143.75,27.32769715]
[1746545280006,20.37134359,143.79,143.75,30.74291351]
[1746545280311,20.37134359,143.79,143.75,23.78655995]
[1746545280494,20.37134359,143.78,143.75,3.41521636]
[1746545280694,34.37134359,143.78,143.74,40.59144359]
[1746545281120,34.37134359,143.78,143.74,47.54836468]
[1746545281327,14.0,143.78,143.75,20.37134359]
[1746545282195,34.37134359,143.78,143.74,47.54836468]
[1746545282605,20.37134359,143.77,143.74,14.0]
[1746545282844,20.37134359,143.76,143.72,27.32906435]
[1746545283028,20.37134359,143.74,143.7,82.23844359]
[1746545283195,20.37134359,143.74,143.7,85.68028731]
[1746545283394,20.37134359,143.74,143.7,65.30894372]
[1746545283722,20.37134359,143.72,143.7,17.44184372]
[1746545283907,20.37134359,143.72,143.7,3.44184372]
[1746545284099,20.37134359,143.72,143.69,6.95941175]
[1746545284296,20.37134359,143.72,143.68,28.83694495]
[1746545285103,20.37134359,143.72,143.68,6.95970136]
[1746545285933,20.37134359,143.71,143.68,6.95970136]
[1746545286227,20.37134359,143.71,143.67,69.16153154]
[1746545286602,14.0,143.73,143.68,20.37134359]
[1746545286824,20.37134359,143.72,143.68,20.37134359]
[1746545287036,20.37134359,143.72,143.67,52.22894223]
[1746545287215,20.37134359,143.72,143.68,20.37134359]
[1746545287831,20.37134359,143.72,143.68,27.33108813]
[1746545288635,14.0,143.73,143.68,27.33108813]
[1746545288934,34.37134359,143.73,143.69,20.37134359]
[1746545289424,34.37134359,143.73,143.68,27.33108813]
[1746545289425,20.37134359,143.72,143.68,27.33108813]
[1746545290704,20.95774886,143.73,143.68,27.33108813]
[1746545291123,14.0,143.73,143.68,27.33108813]
[1746545291432,20.37134359,143.72,143.68,27.33108813]
[1746545292014,14.0,143.73,143.69,27.33050677]
[1746545292327,34.37134359,143.73,143.69,27.33050677]
[1746545292530,77.9,143.75,143.71,20.37134359]
[1746545292701,14.02,143.76,143.73,20.37134359]
[1746545294011,14.02,143.76,143.73,27.32866695]
[1746545294218,51.9,143.79,143.75,20.37134359]
[1746545294450,14.02,143.78,143.75,20.37134359]
[1746545295216,20.37134359,143.76,143.72,20.37134359]
[1746545295628,20.37134359,143.75,143.71,47.47530283]
[1746545295826,32.61081824,143.75,143.71,59.71477748]
[1746545296020,32.61081824,143.76,143.72,32.61081824]
[1746545296226,51.9,143.77,143.72,39.56834047]
[1746545296435,32.61081824,143.76,143.72,32.61081824]
[1746545297234,32.61081824,143.76,143.72,39.5685934]
[1746545297640,51.9,143.77,143.74,32.61081824]
[1746545297826,14.02,143.77,143.74,32.61081824]
[1746545298540,14.02,143.77,143.74,39.56763723]
[1746545299035,14.02,143.77,143.74,6.95681899]
[1746545299417,46.63081824,143.77,143.73,39.56800319]
[1746545299817,46.63081824,143.77,143.71,20.1457]
[1746545299818,32.61081824,143.75,143.71,52.75651824]
[1746545300024,32.61081824,143.74,143.71,14.0]
[1746545300239,32.61081824,143.74,143.71,6.95835055]
[1746545300437,32.61081824,143.75,143.71,6.95835055]
[1746545300638,32.61081824,143.75,143.71,39.56916879]
[1746545301244,51.9,143.76,143.71,39.56916879]
[1746545301432,84.51081824,143.76,143.72,32.61081824]
[1746545301948,32.61081824,143.74,143.68,85.22867297]
[1746545302131,32.61081824,143.74,143.7,32.61081824]
[1746545302945,32.61081824,143.74,143.69,6.95942654]
[1746545303147,32.61081824,143.75,143.71,32.61081824]
[1746545303332,32.61081824,143.75,143.69,66.18799289]
[1746545303333,84.51081824,143.76,143.72,32.61081824]
[1746545303529,51.9,143.76,143.73,32.61081824]
[1746545303736,14.0,143.77,143.73,32.61081824]
[1746545304128,14.0,143.77,143.74,32.61081824]
[1746545304325,32.61081824,143.78,143.74,32.61081824]
[1746545304545,46.61081824,143.78,143.74,32.61081824]
[1746545305751,46.61081824,143.78,143.74,39.56741114]
[1746545306240,14.0,143.78,143.75,32.61081824]
[1746545307127,32.61081824,143.8,143.76,32.61081824]
[1746545307330,14.0,143.79,143.76,32.61081824]
[1746545307954,14.0,143.79,143.76,39.56654631]
[1746545309650,51.9,143.81,143.77,32.61081824]
[1746545309836,14.0,143.8,143.78,32.61081824]
[1746545310531,14.0,143.8,143.77,32.61081824]
[1746545311957,46.61081824,143.8,143.76,32.61081824]
[1746545313932,32.61081824,143.79,143.75,6.95652173]
[1746545314130,20.95431597,143.8,143.75,6.95652173]
[1746545314131,32.61081824,143.78,143.75,6.95652173]
[1746545314366,32.61081824,143.79,143.75,6.95652173]
[1746545314658,32.61081824,143.79,143.75,39.56733997]
[1746545315041,14.0,143.8,143.75,39.56733997]
[1746545315241,46.61081824,143.8,143.76,32.61081824]
[1746545316161,46.61081824,143.8,143.76,39.5664968]
[1746545317861,34.36865879,143.8,143.76,27.32433735]
[1746545318560,34.36865879,143.8,143.77,6.9555449]
[1746545318948,14.0,143.8,143.77,27.32420369]
[1746545320450,34.36865879,143.8,143.76,6.95586769]
[1746545320641,20.36865879,143.79,143.75,69.15496704]
[1746545321362,14.0,143.8,143.77,20.36865879]
[1746545321568,14.0,143.8,143.78,20.36865879]
[1746545321860,14.0,143.81,143.78,20.36865879]
[1746545323163,14.0,143.81,143.77,20.36865879]
[1746545323352,34.36865879,143.81,143.77,20.36865879]
[1746545325942,20.36865879,143.81,143.77,27.32403559]
[1746545326144,34.36865879,143.81,143.77,27.32403559]
[1746545326343,14.0,143.81,143.77,27.32403559]
[1746545327552,34.36865879,143.81,143.77,6.9553768]
[1746545327744,34.36865879,143.81,143.77,27.32403559]
[1746545328762,14.0,143.81,143.77,27.32403559]
[1746545329061,6.95290196,143.83,143.77,69.15403559]
[1746545329370,6.95290196,143.83,143.78,20.36865879]
[1746545329371,14.0,143.82,143.78,20.36865879]
[1746545329668,41.32179739,143.82,143.78,20.36865879]
[1746545329966,34.36865879,143.82,143.78,27.32363222]
[1746545330158,20.36865879,143.81,143.78,6.95497343]
[1746545330377,20.36865879,143.81,143.77,69.15398414]
[1746545332073,20.36865879,143.81,143.77,27.32398414]
[1746545333073,34.36865879,143.82,143.77,27.32398414]
[1746545333671,34.36865879,143.82,143.78,20.36865879]
[1746545334282,14.0,143.82,143.79,27.32324533]
[1746545335153,34.36865879,143.83,143.79,6.95458654]
[1746545335862,34.36865879,143.83,143.79,27.32324533]
[1746545337774,14.0,143.83,143.8,20.36865879]
[1746545338462,34.36865879,143.83,143.8,6.9539493]
[1746545338863,34.36865879,143.83,143.79,20.36865879]
[1746545338864,34.36865879,143.83,143.79,27.32301578]
[1746545339061,20.36865879,143.83,143.79,27.32301578]
[1746545341278,53.402,143.86,143.8,20.36865879]
[1746545341467,53.402,143.86,143.79,48.78435699]
[1746545341468,34.36865879,143.85,143.81,20.36865879]
[1746545341977,20.36865879,143.84,143.8,20.36865879]
[1746545342170,34.36865879,143.85,143.8,20.36865879]
[1746545342481,41.32035936,143.85,143.8,27.32229574]
[1746545343962,34.36865879,143.85,143.8,27.32229574]
[1746545344276,34.36865879,143.85,143.8,6.95363695]
[1746545344481,34.36865879,143.85,143.8,27.32229574]
[1746545345557,20.36865879,143.83,143.79,20.36865879]
[1746545346479,20.36865879,143.83,143.79,6.95458083]
[1746545346777,20.36865879,143.83,143.79,20.36865879]
[1746545347077,20.36865879,143.83,143.78,69.15348741]
[1746545347471,27.32170032,143.83,143.78,69.15348741]
[1746545347781,20.36865879,143.82,143.78,69.15348741]
[1746545347963,6.95304153,143.83,143.78,69.15348741]
[1746545348162,20.36865879,143.83,143.79,20.36865879]
[1746545348465,51.9,143.84,143.8,20.36865879]
[1746545349280,65.88,143.84,143.8,20.36865879]
[1746545349672,65.88,143.84,143.8,27.32232627]
[1746545350970,20.36865879,143.83,143.79,48.78446609]
[1746545351170,20.36865879,143.83,143.79,69.15312488]
[1746545351378,72.83220563,143.84,143.79,69.15312488]
[1746545351571,72.83220563,143.84,143.8,20.36865879]
[1746545351878,51.9,143.84,143.8,27.32254813]
[1746545352064,65.88,143.84,143.81,20.36865879]
[1746545352585,65.88,143.84,143.8,69.15254813]
[1746545352765,51.9,143.84,143.82,20.36865879]
[1746545352966,119.19946137,143.87,143.82,20.36865879]
[1746545353178,51.9,143.87,143.83,20.36865879]
[1746545353382,65.88,143.87,143.83,20.36865879]
[1746545353790,51.9,143.87,143.84,6.95216907]
[1746545354177,51.9,143.87,143.83,20.36865879]
[1746545354376,51.9,143.87,143.83,27.32107929]
[1746545354763,79.21938656,143.87,143.83,27.32107929]
[1746545355086,20.36865879,143.84,143.8,88.19865879]
[1746545355260,20.36865879,143.84,143.8,95.15258337]
[1746545355676,20.36865879,143.85,143.81,20.36865879]
[1746545355876,20.36865879,143.85,143.81,27.32206614]
[1746545356267,6.95080912,143.87,143.82,20.36865879]
[1746545356471,27.31946791,143.87,143.83,20.36865879]
[1746545356895,20.36865879,143.86,143.81,69.15206614]
[1746545357187,20.36865879,143.85,143.81,69.15206614]
[1746545358196,20.36865879,143.85,143.81,48.78340735]
[1746545358378,6.95091497,143.87,143.82,20.36865879]
[1746545358581,20.36865879,143.86,143.82,20.36865879]
[1746545360197,20.36865879,143.86,143.82,27.32163005]
[1746545360665,27.31957376,143.87,143.83,20.36865879]
[1746545360869,20.36865879,143.86,143.82,27.32163005]
[1746545361486,27.31986656,143.86,143.82,27.32163005]
[1746545361793,27.31986656,143.86,143.81,48.78340846]
[1746545362090,27.31986656,143.86,143.82,20.36865879]
[1746545363181,20.36865879,143.86,143.82,27.32158045]
[1746545363479,79.21960031,143.87,143.83,20.36865879]
[1746545364696,20.36865879,143.86,143.82,69.15158045]
[1746545366484,34.34865879,143.86,143.82,69.15158045]
[1746545369299,34.34865879,143.86,143.82,48.78292166]
[1746545369501,34.34865879,143.86,143.82,69.15158045]
[1746545370793,13.98,143.86,143.82,69.15158045]
[1746545371002,13.98,143.86,143.83,20.36865879]
[1746545371475,13.98,143.86,143.84,20.36865879]
[1746545371893,6.9493703,143.9,143.85,20.36865879]
[1746545372100,13.98,143.89,143.86,20.36865879]
[1746545372400,13.98,143.89,143.85,20.36865879]
[1746545372908,13.98,143.89,143.85,30.78261478]
[1746545374007,41.29842851,143.89,143.85,30.78261478]
[1746545374298,65.88,143.9,143.87,20.36865879]
[1746545374902,51.9,143.9,143.87,20.36865879]
[1746545375199,41.29761168,143.91,143.89,20.36865879]
[1746545375200,13.98,143.91,143.89,20.36865879]
[1746545375604,13.98,143.92,143.89,20.36865879]
[1746545375804,34.34865879,143.92,143.88,20.36865879]
[1746545376506,34.34865879,143.92,143.88,27.31875223]
[1746545376805,41.29699435,143.92,143.88,27.31875223]
[1746545378907,13.98,143.92,143.88,27.31875223]
[1746545379203,34.34865879,143.92,143.88,27.31875223]
[1746545379407,41.29708811,143.92,143.88,27.31875223]
[1746545380312,41.29708811,143.92,143.88,20.36865879]
[1746545380691,20.36865879,143.91,143.87,69.14921554]
[1746545380908,41.29708811,143.92,143.88,20.36865879]
[1746545381205,41.29708811,143.92,143.88,27.31873292]
[1746545381411,13.98,143.92,143.88,27.31873292]
[1746545381614,34.34865879,143.92,143.88,27.31873292]
[1746545382813,6.13820151,143.92,143.88,6.95007413]
[1746545383117,6.13820151,143.92,143.88,27.31873292]
[1746545383812,13.08655221,143.92,143.88,27.3188619]
[1746545384623,20.36865879,143.91,143.86,1.6436]
[1746545384919,20.36865879,143.91,143.86,20.36865879]
[1746545384920,20.36865879,143.9,143.86,20.36865879]
[1746545385213,20.36865879,143.89,143.85,30.78268087]
[1746545385917,27.31847776,143.89,143.85,30.78268087]
[1746545386398,72.26865879,143.9,143.86,20.36865879]
[1746545386909,20.36865879,143.89,143.85,23.83137209]
[1746545387094,79.21819262,143.9,143.86,20.36865879]
[1746545391199,79.21819262,143.9,143.85,27.32033489]
[1746545391404,79.21819262,143.9,143.85,30.79985187]
[1746545393721,27.3185197,143.89,143.85,23.84817577]
[1746545394821,27.3185197,143.89,143.85,30.7997403]
[1746545396220,6.94986091,143.89,143.85,30.7997403]
[1746545397202,79.2181465,143.9,143.86,20.36865879]
[1746545398318,51.9,143.9,143.87,20.36865879]
[1746545399519,51.9,143.9,143.87,27.31936787]
[1746545399818,79.21801979,143.9,143.86,20.36865879]
[1746545400316,79.21801979,143.9,143.85,3.47951698]
[1746545400317,20.36865879,143.88,143.85,3.47951698]
[1746545400516,20.36865879,143.88,143.84,20.36865879]
[1746545401014,20.36865879,143.88,143.83,6.2634]
[1746545401206,6.95071939,143.87,143.84,20.36865879]
[1746545401409,27.31841207,143.89,143.84,20.36865879]
[1746545401920,27.31841207,143.89,143.84,23.84782737]
[1746545402324,79.21817594,143.9,143.85,20.36865879]
[1746545402826,58.84951715,143.9,143.85,20.36865879]
[1746545403122,20.36865879,143.89,143.85,20.36865879]
[1746545403602,79.21817594,143.9,143.85,27.32020763]
[1746545403808,51.9,143.9,143.87,20.36865879]
[1746545404014,22.20500852,143.94,143.89,20.36865879]
[1746545404015,58.84788692,143.93,143.89,20.36865879]
[1746545404325,58.84788692,143.93,143.86,41.83]
[1746545404531,20.36865879,143.92,143.86,41.83]
[1746545404723,20.36865879,143.92,143.87,20.36865879]
[1746545405107,27.31696446,143.92,143.88,6.9502363]
[1746545405307,20.36865879,143.91,143.87,20.36865879]
[1746545405723,20.36865879,143.92,143.88,20.36865879]
[1746545405907,93.17668157,143.93,143.89,20.36865879]
[1746545406248,51.9,143.92,143.89,20.36865879]
[1746545407127,51.9,143.92,143.89,27.31840997]
[1746545407618,72.26865879,143.92,143.88,27.31865307]
[1746545408725,79.21696841,143.92,143.88,27.31865307]
[1746545408926,72.26865879,143.92,143.88,27.31865307]
[1746545409436,20.36865879,143.91,143.87,6.95071939]
[1746545409609,58.84833576,143.92,143.86,55.79]
[1746545409610,20.36865879,143.9,143.86,34.32865879]
[1746545410116,51.9,143.91,143.87,20.36865879]
[1746545410319,72.26865879,143.91,143.87,20.36865879]
[1746545411127,72.26865879,143.91,143.88,20.36865879]
[1746545411128,51.9,143.91,143.88,20.36865879]
[1746545411432,51.9,143.91,143.89,20.36865879]
[1746545411632,72.26865879,143.93,143.89,20.36865879]
[1746545411930,51.9,143.93,143.89,20.36865879]
[1746545412128,72.26865879,143.93,143.89,20.36865879]
[1746545412500,79.21649126,143.93,143.89,20.36865879]
[1746545412923,72.26865879,143.93,143.89,27.31812487]
[1746545413230,51.9,143.93,143.89,27.31812487]
[1746545413417,51.9,143.93,143.9,20.36865879]
[1746545414822,51.9,143.93,143.91,6.94878743]
[1746545415211,51.9,143.93,143.9,27.31785344]
[1746545415905,51.9,143.93,143.9,6.94919465]
[1746545416109,86.22865879,143.95,143.9,27.31785344]
[1746545416410,72.26865879,143.95,143.9,27.31785344]
[1746545417034,51.9,143.95,143.9,6.94919465]
[1746545417338,51.9,143.95,143.92,20.36865879]
[1746545417722,51.9,143.95,143.91,20.36865879]
[1746545418417,51.9,143.95,143.93,20.36865879]
[1746545418615,84.84562516,143.98,143.94,20.36865879]
[1746545418821,79.21428395,143.98,143.94,20.36865879]
[1746545419015,20.36865879,143.97,143.93,27.31618808]
[1746545419530,58.84562516,143.98,143.93,27.31618808]
[1746545419917,51.9,143.98,143.94,20.36865879]
[1746545420126,27.31380893,143.99,143.95,20.36865879]
[1746545420334,20.36865879,143.99,143.95,20.36865879]
[1746545420715,84.84466481,144.0,143.95,20.36865879]
[1746545421126,112.22865879,144.0,143.96,20.36865879]
[1746545421324,91.86,144.0,143.96,20.36865879]
[1746545421514,91.86,144.0,143.97,20.36865879]
[1746545421712,20.36865879,143.99,143.93,12.95622929]
[1746545421913,20.36865879,143.98,143.94,20.36865879]
[1746545422113,79.21372267,143.99,143.95,20.36865879]
[1746545422336,79.21372267,143.99,143.96,20.36865879]
[1746545422337,51.9,143.99,143.96,20.36865879]
[1746545422842,79.21363371,143.99,143.95,20.36865879]
[1746545424221,20.36865879,143.97,143.93,78.69835997]
[1746545424716,20.36865879,143.98,143.94,20.36865879]
[1746545425458,20.36865879,143.98,143.94,27.31598986]
[1746545425940,20.36865879,143.98,143.94,6.94733107]
[1746545426132,20.36865879,143.98,143.94,27.31598986]
[1746545426848,27.31414069,143.98,143.94,20.36865879]
[1746545427042,27.31414069,143.98,143.94,27.31593315]
[1746545427231,27.31414069,143.98,143.94,20.36865879]
[1746545427832,20.36865879,143.95,143.91,13.96]
[1746545428142,20.36865879,143.96,143.92,20.36865879]
[1746545428325,72.26865879,143.97,143.93,20.36865879]
[1746545429039,51.9,143.97,143.93,20.36865879]
[1746545429437,79.21468299,143.97,143.93,20.36865879]
[1746545430643,20.36865879,143.96,143.92,23.88607859]
[1746545430938,20.36865879,143.94,143.91,13.96]
[1746545431243,26.0,143.98,143.92,20.36865879]
[1746545431244,93.15532005,143.96,143.92,20.36865879]
[1746545433352,65.84,143.96,143.93,20.36865879]
[1746545434440,72.78641703,143.96,143.93,20.36865879]
[1746545434638,51.9,143.96,143.93,20.36865879]
[1746545434839,51.9,143.96,143.94,27.31599795]
[1746545435042,51.9,143.98,143.95,20.36865879]
[1746545435243,51.9,144.0,143.97,20.36865879]
[1746545436254,32.94371032,144.02,143.98,20.36865879]
[1746545436458,67.25236911,144.02,143.98,20.36865879]
[1746545436831,20.36865879,144.01,143.97,20.36865879]
[1746545437050,46.88371032,144.02,143.97,20.36865879]
[1746545437248,20.36865879,144.01,143.97,20.36865879]
[1746545438433,20.36865879,144.01,143.97,27.3144083]
[1746545438627,20.36865879,144.01,143.97,20.36865879]
[1746545440052,46.88371032,144.02,143.96,20.36865879]
[1746545440053,20.36865879,144.0,143.96,20.36865879]
[1746545440355,27.31333388,144.0,143.95,20.36865879]
[1746545440564,20.36865879,143.97,143.92,39.94]
[1746545440775,20.36865879,143.97,143.93,20.36865879]
[1746545441059,20.36865879,143.95,143.92,3.40884746]
[1746545441267,20.36865879,143.94,143.9,33.42122765]
[1746545441567,20.36865879,143.94,143.9,6.1035]
[1746545441739,20.36865879,143.94,143.89,48.77973645]
[1746545442067,20.36865879,143.94,143.9,20.36865879]
[1746545442561,20.36865879,143.93,143.89,20.36865879]
[1746545443366,20.36865879,143.9,143.84,254.507]
[1746545443574,20.36865879,143.89,143.85,20.36865879]
[1746545444063,20.36865879,143.89,143.84,35.87565879]
[1746545444234,20.36865879,143.88,143.84,34.30865879]
[1746545444434,20.36865879,143.88,143.84,20.36865879]
[1746545444642,27.31930162,143.88,143.84,20.36865879]
[1746545444946,27.31930162,143.88,143.84,23.82611875]
[1746545446391,20.36865879,143.87,143.83,26.61525879]
[1746545446588,20.36865879,143.86,143.82,6.9531065]
[1746545446778,20.36865879,143.86,143.82,27.32176529]
[1746545446974,27.31988697,143.86,143.82,20.36865879]
[1746545447281,20.36865879,143.85,143.81,20.36865879]
[1746545447466,20.36865879,143.85,143.8,22.43746062]
[1746545447669,27.31988697,143.86,143.82,20.36865879]
[1746545447875,20.36865879,143.86,143.82,20.36865879]
[1746545448362,51.9,143.87,143.85,20.36865879]
[1746545448683,51.9,143.87,143.81,3.43877084]
[1746545448684,51.9,143.87,143.86,20.36865879]
[1746545448984,51.9,143.87,143.85,20.36865879]
[1746545449364,72.26865879,143.87,143.83,27.32112315]
[1746545449778,51.9,143.87,143.84,20.36865879]
[1746545450844,79.21954716,143.87,143.82,27.32177151]
[1746545451346,79.21954716,143.87,143.83,20.36865879]
[1746545451653,72.26865879,143.87,143.83,20.36865879]
[1746545451862,79.21939325,143.87,143.83,20.36865879]
[1746545453455,79.21939325,143.87,143.82,6.95311272]
[1746545453658,20.36865879,143.86,143.81,3.46316897]
[1746545453967,20.36865879,143.85,143.81,20.36865879]
[1746545454861,27.32064365,143.85,143.81,20.36865879]
[1746545455169,20.36865879,143.84,143.8,22.43743755]
[1746545455356,20.36865879,143.84,143.8,42.80609634]
[1746545456001,20.36865879,143.84,143.8,22.43743755]
[1746545456280,79.22092068,143.84,143.8,34.30865879]
[1746545456455,79.22092068,143.84,143.8,41.26270832]
[1746545456660,72.26865879,143.84,143.8,27.32270832]
[1746545457082,51.9,143.84,143.82,20.36865879]
[1746545457594,51.9,143.88,143.83,20.36865879]
[1746545457881,51.9,143.88,143.85,27.32020608]
[1746545458376,51.9,143.88,143.86,20.36865879]
[1746545459756,51.9,143.88,143.85,27.32031563]
[1746545462651,98.26865879,143.9,143.85,27.32031563]
[1746545462853,51.9,143.9,143.88,20.36865879]
[1746545463067,65.84,143.94,143.89,20.36865879]
[1746545463248,51.9,143.94,143.92,20.36865879]
[1746545463466,51.9,143.96,143.93,20.36865879]
[1746545463659,51.9,143.96,143.94,20.36865879]
[1746545464765,58.84553352,143.98,143.94,20.36865879]
[1746545464961,79.21419231,143.98,143.94,20.36865879]
[1746545465571,58.84553352,143.98,143.94,20.36865879]
[1746545465949,91.35501702,143.98,143.94,32.5094835]
[1746545466355,53.39457669,143.99,143.95,32.5094835]
[1746545466688,26.0,143.96,143.89,6.94932824]
[1746545466858,32.5094835,143.92,143.88,34.0446835]
[1746545467062,32.5094835,143.93,143.89,32.5094835]
[1746545467887,39.45744975,143.93,143.89,32.5094835]
[1746545468180,32.5094835,143.92,143.88,32.5094835]
[1746545468385,32.5094835,143.91,143.87,38.7393835]
[1746545468682,51.9,143.91,143.85,13.94]
[1746545468892,32.5094835,143.89,143.85,53.40110201]
[1746545469059,84.4094835,143.9,143.86,32.5094835]
[1746545469260,51.9,143.9,143.86,32.5094835]
[1746545470154,84.4094835,143.9,143.86,32.5094835]
[1746545470566,51.9,143.9,143.86,39.46066631]
[1746545471263,51.9,143.9,143.87,32.5094835]
[1746545471976,84.4094835,143.9,143.85,20.89148082]
[1746545472161,32.5094835,143.89,143.85,53.40096432]
[1746545472358,32.5094835,143.88,143.84,39.1167835]
[1746545472580,32.5094835,143.87,143.82,44.64964886]
[1746545472788,32.5094835,143.87,143.82,39.46261936]
[1746545472981,72.7900035,143.89,143.81,59.51510635]
[1746545472982,32.5094835,143.86,143.81,59.51510635]
[1746545473158,32.5094835,143.85,143.81,59.51510635]
[1746545473359,32.5094835,143.83,143.8,3.56980307]
[1746545473563,32.5094835,143.84,143.8,32.5094835]
[1746545473767,32.5094835,143.87,143.83,32.5094835]
[1746545473964,51.9,143.87,143.84,32.5094835]
[1746545474374,91.36046985,143.87,143.83,32.5094835]
[1746545474683,32.5094835,143.85,143.81,32.5094835]
[1746545475988,51.9,143.86,143.81,32.5094835]
[1746545476186,32.5094835,143.84,143.8,32.5094835]
[1746545476691,91.36152229,143.85,143.81,32.5094835]
[1746545476869,32.5094835,143.84,143.8,32.5094835]
[1746545477373,32.5094835,143.82,143.78,32.5094835]
[1746545477560,13.94,143.83,143.77,32.5094835]
[1746545477561,32.5094835,143.81,143.77,32.5094835]
[1746545477767,32.5094835,143.81,143.77,36.07500482]
[1746545478075,32.5094835,143.81,143.77,32.5094835]
[1746545478275,32.5094835,143.8,143.76,53.40549851]
[1746545478579,39.46362162,143.8,143.76,56.82081558]
[1746545478768,91.36362162,143.8,143.76,32.5094835]
[1746545480181,32.5094835,143.79,143.75,6.0273]
[1746545480501,32.5094835,143.79,143.75,38.5367835]
[1746545480885,32.5094835,143.79,143.75,32.5094835]
[1746545481296,32.5094835,143.79,143.75,39.46596498]
[1746545481601,32.5094835,143.79,143.75,32.5094835]
[1746545481807,32.5094835,143.79,143.74,3.47553]
[1746545482017,32.5094835,143.76,143.72,13.94]
[1746545482308,32.5094835,143.75,143.72,13.94]
[1746545482499,32.5094835,143.75,143.71,45.87095657]
[1746545482799,32.5094835,143.75,143.71,32.5094835]
[1746545482987,32.5094835,143.75,143.7,6.9587446]
[1746545482988,32.5094835,143.74,143.7,32.5094835]
[1746545483298,32.5094835,143.73,143.68,20.89969065]
[1746545483470,32.5094835,143.72,143.68,53.40917415]
[1746545483673,46.4494835,143.73,143.69,32.5094835]
[1746545484091,46.4494835,143.73,143.68,46.4494835]
[1746545484092,32.5094835,143.72,143.68,46.4494835]
[1746545484293,32.5094835,143.71,143.67,38.9127835]
[1746545484480,32.5094835,143.7,143.66,8.60712025]
[1746545484673,32.5094835,143.71,143.67,32.5094835]
[1746545485479,32.5094835,143.71,143.67,39.4698466]
[1746545486497,39.46801788,143.71,143.67,32.5094835]
[1746545487077,32.5094835,143.71,143.67,39.46984862]
[1746545487598,39.46799483,143.71,143.67,32.5094835]
[1746545488300,32.5094835,143.71,143.67,39.46984492]
[1746545489101,39.46803693,143.71,143.66,6.96069317]
[1746545489481,39.46803693,143.71,143.67,32.5094835]
[1746545489782,32.5094835,143.7,143.67,39.46983751]
[1746545489985,32.5094835,143.71,143.67,39.46983751]
[1746545490593,46.4494835,143.73,143.69,32.5094835]
[1746545490902,51.9,143.72,143.69,32.5094835]
[1746545491206,51.9,143.72,143.71,32.5094835]
[1746545491579,51.9,143.72,143.71,39.4679415]
[1746545491780,79.42617883,143.75,143.71,32.5094835]
[1746545492005,32.5094835,143.74,143.7,39.46829538]
[1746545493100,32.5094835,143.74,143.7,32.5094835]
[1746545493294,32.5094835,143.72,143.68,81.29919808]
[1746545493811,72.4694835,143.75,143.71,32.5094835]
[1746545494388,32.5094835,143.74,143.68,48.78971458]
[1746545494594,46.91669255,143.75,143.7,32.5094835]
[1746545494793,32.5094835,143.74,143.7,32.5094835]
[1746545495004,72.4694835,143.75,143.71,32.5094835]
[1746545495510,72.4694835,143.75,143.7,32.5094835]
[1746545495811,32.5094835,143.73,143.7,6.95881941]
[1746545497016,6.9575043,143.73,143.66,41.83]
[1746545497206,32.5094835,143.71,143.67,32.5094835]
[1746545497711,32.5094835,143.7,143.66,81.30019525]
[1746545497921,32.5094835,143.71,143.66,81.30019525]
[1746545498417,51.9,143.73,143.69,32.5094835]
[1746545498596,32.5094835,143.72,143.68,39.46927991]
[1746545499020,32.5094835,143.71,143.66,48.79067448]
[1746545499406,32.5094835,143.71,143.66,81.30015798]
[1746545500194,39.46831091,143.71,143.67,32.5094835]
[1746545500525,32.5094835,143.7,143.66,81.30015798]
[1746545501520,32.5094835,143.71,143.67,32.5094835]
[1746545501711,91.36765725,143.72,143.67,32.5094835]
[1746545501905,91.36765725,143.72,143.68,32.5094835]
[1746545502302,32.5094835,143.71,143.66,81.30015798]
[1746545502705,32.5094835,143.69,143.64,46.0778]
[1746545502905,32.5094835,143.68,143.64,13.94]
[1746545503102,32.5094835,143.68,143.64,32.5094835]
[1746545503297,65.86,143.7,143.63,32.5094835]
[1746545503298,32.5094835,143.67,143.63,32.5094835]
[1746545503497,65.86,143.7,143.65,32.5094835]